Cogmind - Beta 11.1 @@@ ROGUE MODE // 2022.05.15 @ 21:48:18 Player: Smie Result: Destroyed by as-20301 with Assembled Focal Cannon Performance ------------- Evolutions (1) 500 Regions Visited (5) 1000 Robots Destroyed (28) 140 Value Destroyed (916) 916 Prototype IDs (7) 140 Alien Tech Used (0) 0 Bonus (1600) 1600 TOTAL SCORE: 4296 Bonus ------- Met Imprinter 300 Was Imprinted 300 Destroyed Z-Imprinter 1000 Cogmind --------- Core Integrity 0/400 Matter 123/300 Energy 98/160 System Corruption 0% Temperature Cool (8) Movement Walking (115) Location -7/Deep Caves Parts ------- > --- POWER (1) -------- Light Nuclear Core > --- PROPULSION (2) --- Improved Aluminum Leg Zionite Composite Leg I > --- UTILITY (4) ------ Small Storage Unit Terrain Scanner Terrain Scan Processor Zionite Light Carapace > --- WEAPON (2) ------- Zionite Phaser-S RU-N14's Throwing Claymores > --- INVENTORY (8) ---- Zionite Composite Leg I Experimental Heat Sink Zionite Biocell (547) Advanced Phase Shifter Medium Armor Plating Hardlight Generator Particle Gun Zionite Phaser-S Peak State ------------ > --- POWER ------------ (None) > --- PROPULSION ------- Zionite Composite Leg I Zionite Composite Leg I > --- UTILITY ---------- Small Storage Unit Terrain Scanner Terrain Scan Processor Zionite Light Carapace > --- WEAPON ----------- Zionite Phaser-S RU-N14's Throwing Claymores > --- INVENTORY -------- Improved Aluminum Leg Experimental Heat Sink Compact Battery Advanced Phase Shifter Medium Armor Plating Hardlight Generator Particle Gun Zionite Phaser-S [Rating: 39] Favorites ----------- Power Light Nuclear Core Engine Ion Engine Power Core Light Nuclear Core Propulsion Aluminum Leg Leg Aluminum Leg Utility Small Storage Unit Device Heat Sink Storage Small Storage Unit Processor Terrain Scan Processor Protection Hardened Light Armor Plating Weapon RU-N14's Throwing Claymores Energy Gun Particle Gun Launcher Rocket Array Special Weapon RU-N14's Throwing Claymores Build | -11 -10 -9 -9 -7 -7 ------- Run | Scr Mat Mat Min Zio Dee Slots Evolved 2 | . . 2 . . . Power . | . . . . . . Propulsion . | . . . . . . Utility 2 | . . 2 . . . Weapon . | . . . . . . Parts Attached 54 | 6 . 20 . 10 18 Power 8 | 1 . 3 . 2 2 Engine 5 | 1 . 2 . 1 1 Core 3 | . . 1 . 1 1 Reactor . | . . . . . . Propulsion 11 | 2 . 4 . 1 4 Treads . | . . . . . . Leg 11 | 2 . 4 . 1 4 Wheel . | . . . . . . Hover . | . . . . . . Flight . | . . . . . . Utility 22 | 1 . 10 . 3 8 Device 9 | . . 5 . 2 2 Storage 7 | 1 . 2 . . 4 Processor 1 | . . . . 1 . Hackware . | . . . . . . Protection 5 | . . 3 . . 2 Artifact . | . . . . . . Weapon 13 | 2 . 3 . 4 4 Energy Gun 9 | 2 . 3 . 1 3 Energy Cannon . | . . . . . . Ballistic Gun . | . . . . . . Ballistic Cannon . | . . . . . . Launcher 1 | . . . . 1 . Special Weapon 3 | . . . . 2 1 Impact Weapon . | . . . . . . Slashing Weapon . | . . . . . . Piercing Weapon . | . . . . . . Special Melee Weapon . | . . . . . . Unidentified Prototypes 7 | . . . . 2 5 Parts Lost 7 | . . 2 . . 5 Power 3 | . . 1 . . 2 Propulsion 1 | . . . . . 1 Utility 1 | . . . . . 1 Weapon 2 | . . 1 . . 1 Highest Loss Streak 3 | . . 1 . . 3 To Critical Strikes . | . . . . . . Average Slot Usage (%) 94 | . 85 88 88 99 90 Engine 4 | . 14 9 11 1 . Core 5 | . . . . 9 3 Leg 22 | . 28 21 22 22 21 Device 19 | . . 14 33 24 15 Storage 12 | . 14 15 11 11 13 Processor 6 | . . . . 8 11 Protection 2 | . . 5 . . 4 Energy Gun 10 | . 28 21 11 2 11 Launcher 1 | . . . . 1 . Special Weapon 10 | . . . . 16 9 Naked Turns . | . . . . . . Heaviest Build 32 | 13 13 25 20 32 26 Greatest Support 48 | 20 20 23 23 23 48 Greatest Overweight (x) 1 | . . 1 . 1 1 Average Overweight (x) . | . . . . . . Largest Inventory Capacity 8 | 8 8 8 8 8 8 Average Capacity 7 | 7 8 8 8 8 7 Most Carried 8 | 6 8 8 8 8 8 Average Carried 7 | 3 6 7 8 7 7 Final Capacity 8 | 8 8 8 8 8 8 Final Carried 8 | 6 8 8 8 8 8 Class Distribution -------------------- 61% | Scavenger-Mutant 38% | Mutant Dominant Class ---------------- Mutant | -10/Materials Mutant | -9/Materials Scavenger-Mutant | -9/Mines Scavenger-Mutant | -7/Zion Mutant | -7/Deep Caves Resources | -11 -10 -9 -9 -7 -7 ----------- Run | Scr Mat Mat Min Zio Dee Matter Collected 530 | 222 38 173 . 16 81 Remotely . | . . . . . . Salvage Created 881 | . 80 513 . . 288 Parts 48 | . 4 27 . . 17 Haulers Intercepted . | . . . . . . Recyclers Shooed . | . . . . . . Parts Field Recycled . | . . . . . . Retrieved Matter . | . . . . . . Parts Self-Destructed . | . . . . . . Prevented . | . . . . . . Kills | -11 -10 -9 -9 -7 -7 ------- Run | Scr Mat Mat Min Zio Dee Combat Hostiles Destroyed 31 | . 2 17 . . 12 Guns 18 | . 1 17 . . . Cannons 1 | . . . . . 1 AOE 11 | . . . . . 11 Classes Destroyed 6 | . 1 3 . . 2 Swarmer 7 | . . 7 . . . Grunt 9 | . 2 7 . . . Brawler 1 | . . 1 . . . Sentry 2 | . . 2 . . . Z-Light 8 | . . . . . 8 Assembled 3 | . . . . . 3 Best Kill Streak 7 | . 2 7 . . 6 Combat Bots Only 7 | . 2 7 . . 6 Max Kills in Single Turn 3 | . 1 1 . . 3 Gunslinging . | . . . . . . Exploded 3 | . . . . . 3 Melee . | . . . . . . Uniques/NPCs Destroyed 1 | . . . . . 1 Z-Imprinter (-7/Deep Caves) Combat | -11 -10 -9 -9 -7 -7 -------- Run | Scr Mat Mat Min Zio Dee Damage Taken 1759 | . 132 1026 . . 601 Core 455 | . 34 184 . . 237 Absorbed by Shields 20 | . . 20 . . . Regen/Repaired (Parts) 107 | . . 107 . . . Core Remaining (%) 93 | 100 86 . . . . Volleys Fired 72 | . 8 50 . . 14 Largest 2 | . 2 2 . . 2 Hottest 130 | . 90 130 . . 60 Shots Fired 130 | . 16 98 . . 16 Gun 116 | . 16 98 . . 2 Cannon . | . . . . . . Launcher . | . . . . . . Special 14 | . . . . . 14 Kinetic . | . . . . . . Thermal 114 | . 16 98 . . . Explosive 14 | . . . . . 14 Electromagnetic . | . . . . . . Phasic 2 | . . . . . 2 Robot Hit Streak 22 | . 5 22 . . 5 Robot Miss Streak 3 | . 2 3 . . 1 Penetration Max . | . . . . . . Secondary Targets 1 | . . 1 . . . Max Gunslinging Chain 1 | . . 1 . . . Shots Hit Robots 89 | . 11 66 . . 12 Core Hits 49 | . 4 23 . . 22 Critical Kills . | . . . . . . Critical Parts Destroyed . | . . . . . . Critical Strikes 7 | . . 4 . . 3 Burn 4 | . . 4 . . . Sever 3 | . . . . . 3 Melee Attacks . | . . . . . . Impact . | . . . . . . Slashing . | . . . . . . Piercing . | . . . . . . Sneak Attacks . | . . . . . . Combat Hostiles . | . . . . . . Follow-up Attacks . | . . . . . . Damage Inflicted 3067 | . 134 922 . . 2011 Guns 1053 | . 134 919 . . . Cannons . | . . . . . . Explosions 1549 | . . . . . 1549 Melee . | . . . . . . Ramming 3 | . . 3 . . . Kinetic . | . . . . . . Thermal 1053 | . 134 919 . . . Explosive 1549 | . . . . . 1549 Electromagnetic . | . . . . . . Impact . | . . . . . . Slashing 462 | . . . . . 462 Piercing . | . . . . . . Highest Corruption 4 | . . . . 4 . Average Corruption 4 | . . . . 4 . Corruption Purged . | . . . . . . Corruption Blocked . | . . . . . . Effects 1 | . . . . 1 . Matter Fused 1 | . . . . 1 . Overload Shots . | . . . . . . Overflow Damage 111 | . . . . . 111 Projectiles 20 | . . . . . 20 Explosions 91 | . . . . . 91 Melee . | . . . . . . Knockbacks . | . . . . . . Impact . | . . . . . . Kinetic . | . . . . . . Secondary . | . . . . . . Self-Inflicted Damage . | . . . . . . Shots . | . . . . . . Rammed . | . . . . . . Targets Rammed 2 | . . 2 . . . Kicked 2 | . . 2 . . . Crushed . | . . . . . . Highest Temperature 339 | . 303 339 . . 2 Average Temperature 156 | . 154 160 . . 1 Received Heat Transfer 534 | . 69 288 . . 177 Effects 3 | . 1 2 . . . Interference 3 | . 1 2 . . . Siege Activations . | . . . . . . Robots Corrupted . | . . . . . . Combat Hostiles . | . . . . . . Parts Fried . | . . . . . . Impact Corruptions . | . . . . . . Robots Melted 1 | . 1 . . . . Combat Hostiles 1 | . 1 . . . . Parts Melted 4 | . . 4 . . . Heat Transferred 2905 | . 347 2558 . . . Parts Sabotaged . | . . . . . . Parts Stolen . | . . . . . . Parts Stripped . | . . . . . . Power Chain Reactions . | . . . . . . Missiles Intercepted . | . . . . . . Alert | -11 -10 -9 -9 -7 -7 ------- Run | Scr Mat Mat Min Zio Dee Peak Influence 391 | . 80 391 106 . . Initial 106 | . . 33 106 . . Average 108 | . 28 131 106 . . Maximum Alert Level 1 | . . 1 . . . Low Security (%) 81 | 100 100 75 100 . . Level 1 18 | . . 24 . . . Level 2 . | . . . . . . Level 3 . | . . . . . . Level 4 . | . . . . . . Level 5 . | . . . . . . High Security . | . . . . . . Max Security . | . . . . . . Squads Dispatched 3 | . 1 2 . . . Investigation 2 | . . 2 . . . Extermination . | . . . . . . Reinforcement 1 | . 1 . . . . Assault . | . . . . . . Garrison . | . . . . . . Intercept . | . . . . . . Searches Triggered . | . . . . . . Construction Impeded . | . . . . . . Haulers Reinforced . | . . . . . . Active Scanning Responses . | . . . . . . Cargo Convoy Interrupts . | . . . . . . Stealth | -11 -10 -9 -9 -7 -7 --------- Run | Scr Mat Mat Min Zio Dee Distress Signals 2 | . . 2 . . . Communications Jammed . | . . . . . . Distress Signals . | . . . . . . Times Spotted 44 | . 4 29 . . 11 Peak Tracking Total 8 | . 2 8 . . 5 Tactical Retreats 2 | . . 2 . . . Traps | -11 -10 -9 -9 -7 -7 ------- Run | Scr Mat Mat Min Zio Dee Traps Triggered 1 | . . 1 . . . Indirectly . | . . . . . . Trap Hack Attempts . | . . . . . . Triggered . | . . . . . . Disarmed . | . . . . . . Reprogrammed . | . . . . . . Reused . | . . . . . . Traps Extracted . | . . . . . . Installed . | . . . . . . Triggered . | . . . . . . Machines | -11 -10 -9 -9 -7 -7 ---------- Run | Scr Mat Mat Min Zio Dee Machines Disabled 1 | . . . . . 1 Max in Single Turn 1 | . . . . . 1 Machines Sabotaged . | . . . . . . Garrisons Compromised . | . . . . . . Overloaded Fab Kills . | . . . . . . Hacking | -11 -10 -9 -9 -7 -7 --------- Run | Scr Mat Mat Min Zio Dee Machines Accessed 4 | . . 4 . . . Terminals 2 | . . 2 . . . Fabricators . | . . . . . . Repair Stations 2 | . . 2 . . . Recycling Units . | . . . . . . Scanalyzers . | . . . . . . Garrison Access . | . . . . . . Total Hacks 14 | . . 14 . . . Successful 8 | . . 8 . . . Failed 6 | . . 6 . . . Catastrophic . | . . . . . . Database Lockouts . | . . . . . . Manual 8 | . . 4 . 4 . Terminals 5 | . . 5 . . . Fabricators . | . . . . . . Repair Stations 9 | . . 9 . . . Recycling Units . | . . . . . . Scanalyzers . | . . . . . . Garrison Access . | . . . . . . Terminal Hacks 1 | . . 1 . . . Branch Access Points 1 | . . 1 . . . Fabricator Hacks . | . . . . . . Repair Station Hacks 6 | . . 6 . . . Scan Component 3 | . . 3 . . . Repair 3 | . . 3 . . . Recycling Unit Hacks . | . . . . . . Scanalyzer . | . . . . . . Garrison Access Hacks . | . . . . . . Unauthorized Hacks 1 | . . 1 . . . Terminals 1 | . . 1 . . . Botnet 1 | . . 1 . . . Fabricators . | . . . . . . Repair Stations . | . . . . . . Recycling Units . | . . . . . . Scanalyzers . | . . . . . . Garrison Access . | . . . . . . Data Cores Recovered . | . . . . . . Used . | . . . . . . Hacking Detections 3 | . . 3 . . . Full Trace Events 1 | . . 1 . . . Feedback Events . | . . . . . . Feedback Blocked . | . . . . . . Robot Schematics Acquired 3 | . . . . 3 . Robots Built . | . . . . . . Authchips . | . . . . . . Time . | . . . . . . Total Robot Build Rating . | . . . . . . Part Schematics Acquired 15 | . . . . 15 . Parts Built . | . . . . . . Authchips . | . . . . . . Time . | . . . . . . Total Part Build Rating . | . . . . . . Parts Repaired 3 | . . 3 . . . Time 78 | . . 78 . . . Parts Recycled . | . . . . . . Recycled Matter . | . . . . . . Retrieved Matter . | . . . . . . Retrieved Components . | . . . . . . Parts Scanalyzed . | . . . . . . Part Schematics Acquired . | . . . . . . Parts Damaged . | . . . . . . Bothacking | -11 -10 -9 -9 -7 -7 ------------ Run | Scr Mat Mat Min Zio Dee Used RIF Installer . | . . . . . . Robots Hacked . | . . . . . . Non-combat . | . . . . . . Combat . | . . . . . . Robot Hacks Applied . | . . . . . . Relay Couplers Released . | . . . . . . Fabnet Peak Effective % . | . . . . . . Robots Rewired . | . . . . . . Allies Hacked . | . . . . . . Hacks Repelled . | . . . . . . Allies | -11 -10 -9 -9 -7 -7 -------- Run | Scr Mat Mat Min Zio Dee Total Allies 4 | . . . . 4 . Largest Group 4 | . . . . 4 3 Highest-Rated Group 154 | . . . . 154 115 Highest-Rated Ally 40 | . . . . 40 40 Total Orders . | . . . . . . Ally Attacks . | . . . . . . Total Damage . | . . . . . . Kills . | . . . . . . Allies Corrupted . | . . . . . . Allies Melted . | . . . . . . Intel | -11 -10 -9 -9 -7 -7 ------- Run | Scr Mat Mat Min Zio Dee Robot Analysis Total . | . . . . . . Derelict Logs Recovered 2 | . . . . 2 . Drone Launches . | . . . . . . Drone Recoveries . | . . . . . . Exploration | -11 -10 -9 -9 -7 -7 ------------- Run | Scr Mat Mat Min Zio Dee Turns Passed 3274 | 87 134 868 38 1610 537 Spaces Moved 1664 | 65 73 396 28 767 335 Core 8 | 8 . . . . . Treads . | . . . . . . Legs 1656 | 57 73 396 28 767 335 Wheels . | . . . . . . Hover . | . . . . . . Flight . | . . . . . . Fastest Speed 50 | 50 120 120 120 120 110 Average Speed 151 | 111 120 134 120 183 118 Slowest Speed 190 | 120 120 190 120 190 190 Overloaded Moves . | . . . . . . Propulsion Burnouts . | . . . . . . Robots Hopped . | . . . . . . Cave-ins Triggered . | . . . . . . Exploration Rate (%) 34 | 4 21 30 7 89 58 Regions Visited 5 Branch Regions 3 Pre-discovered Areas 2 | . . . . 2 . Known Exits Taken 1 | . . 1 . . . Unknown Exits Taken 4 | 1 1 . 1 1 . Scrap Searched 1 | . . . . 1 . Spaces Dug . | . . . . . . Terrain Destroyed 97 | . . . . . 97 Melee . | . . . . . . Projectile 3 | . . . . . 3 AOE 94 | . . . . . 94 Terrain Rammed . | . . . . . . Walls Destroyed . | . . . . . . Machines Disabled . | . . . . . . Actions | -11 -10 -9 -9 -7 -7 --------- Run | Scr Mat Mat Min Zio Dee Total 2275 | 76 104 630 32 973 460 Wait 429 | . 20 142 5 186 76 Move 1659 | 64 72 395 27 766 335 Hop . | . . . . . . Pick Up 26 | 6 3 7 . 3 7 Fast Attach 25 | 6 . 10 . 3 6 Attach 11 | . . 1 . 3 7 Detach 8 | . . . . 2 6 Swap 18 | . . 9 . 4 5 Drop 25 | . 1 14 . 6 4 Fire 72 | . 8 50 . . 14 Melee . | . . . . . . Ram . | . . . . . . Kick 2 | . . 2 . . . Crush . | . . . . . . Escape Stasis . | . . . . . . Rewire . | . . . . . . Trap . | . . . . . . Miscellaneous . | . . . . . . Route ------- -11/Scrapyard -10/Materials -9/Materials -9/Mines -7/Zion (discovered 2 exits: [*Dee] / [*Pro]) -7/Deep Caves History --------- Turn | Location | Event 8 | -11/Scrapyard | Discovered new exit (range 16) 88 | -11/Scrapyard | Entered Materials 208 | -10/Materials | Discovered new exit (range 8) 222 | -10/Materials | Entered another Materials area 222 | -9/Materials | Evolved 2 slots: Utility x2 266 | -9/Materials | Repaired Ion Engine 306 | -9/Materials | Build established: Mutant 697 | -9/Materials | Repaired Heat Sink 725 | -9/Materials | Repaired Aluminum Leg 903 | -9/Materials | Destroyed 7 combat bots 1037 | -9/Materials | Identified exit to Mines 1090 | -9/Materials | Entered Mines 1119 | -9/Mines | A Derelict revealed a hidden shortcut to a safe place 1124 | -9/Mines | Met a Derelict bent on vengeance 1128 | -9/Mines | Entered Zion 1188 | -7/Zion | Found Prototype Launcher 1189 | -7/Zion | Identified Rocket Array 1204 | -7/Zion | Discovered new exit (range 10) 1210 | -7/Zion | Build established: Scavenger-Mutant 1242 | -7/Zion | System corruption cleaned by Quarantine Array 1472 | -7/Zion | Found Prototype Special Weapon 1472 | -7/Zion | Identified RU-N14's Throwing Claymores 1475 | -7/Zion | Found RU-N14's Throwing Claymores 1774 | -7/Zion | Discovered new exit (range 10) 1986 | -7/Zion | Learned location of Recycling (-7) 2187 | -7/Zion | Acquired unknown access codes intercepted by a Zionite 2220 | -7/Zion | Learned Factory emergency access door positions 2548 | -7/Zion | Imprinted 2550 | -7/Zion | Declared Zion's savior 2704 | -7/Zion | Opened final containment barrier to the Deep Caves 2722 | -7/Zion | Saw the warning signs outside the Deep Caves entrance 2738 | -7/Zion | Entered Deep Caves 2738 | -7/Deep Caves | Accompanied by 4 allies 2892 | -7/Deep Caves | Attacked by Z-Imprinter 2892 | -7/Deep Caves | Z-Facility disabled 2906 | -7/Deep Caves | Core integrity fell below 50% 2908 | -7/Deep Caves | Destroyed Z-Imprinter 2919 | -7/Deep Caves | Core integrity fell below 20% 2951 | -7/Deep Caves | Lost 3 parts (2p1u) 3193 | -7/Deep Caves | Build established: Mutant 3275 | -7/Deep Caves | Spotted as-20301 3275 | -7/Deep Caves | Destroyed by as-20301 with Assembled Focal Cannon Last Messages --------------- 03078_ Identified Zio. Light Carapace. 03079_ Acquired 6 matter. 03082_ The unstable cave ceiling collapses. 03087_ Acquired Prototype Leg. 03087_ Identified Zio. Composite Leg I. 03091_ Dropped Aluminum Leg. 03095_ The unstable cave ceiling collapses. 03102_ Prototype Protection crushed. 03107_ Acquired 28 matter. 03117_ The unstable cave ceiling collapses. 03146_ Dropped Med. Armor Plating. 03147_ Acquired Prototype Storage. 03148_ Identified Zio. Biocell. 03149_ Dropped Com. Battery. 03153_ Acquired Sml. Storage Unit. 03155_ Acquired Med. Armor Plating. 03157_ Acquired Adv. Phase Shifter. 03160_ Acquired Hardlight Generator. 03162_ Extracted 28 energy. 03270_ Acquired Lgt. Nuclear Core. Map ----- +----------------------------------------------------+ | ????????????????????????????????????????????? | | ????????????????????????????????????????????? | | ????????????????????????????????????????????? | | ????????????????????????????????????????????? | | ????????????????????????????????????????????? | | ????????????????????????????????????????????? | | ????????????????????????????????????????????? | | ????????????????????????????????????????????? | | ????????????????????????????????????????????? | | ????????????????????????????????????????????? | | ?????????????????? ?????????????????????? | | ???????????????? [ ?????????????????????? | | ????????????? ?#???????????????????? | | ??????????? ???#?????????????????? | | ?????????" #??##?????????????????? | | ?????????" ##? #?????????????????? | | ????????# ### ####??????????????? | | ????????# * * # ????????????????? | | ????????# b ;#????????????????? | | ????????# s* h ###??????????????? | | ????????# * ???????????????? | | ????????# // / #????????#???????? | | ????????# / ##???????????????? | | ????????# ** #???? ?????????? | | ????????# #?# ??? ????????? | | ????????# @ #??????? ???????? | | ????????# * ! #??????????#????? | | ????????"" l* s ##???#???? #????? | | ?????????" * *! #?????#??? #?#??? | | ?????????" b ##??????# ####?? | | ?????????" ! ####?#?## #?#?#? | | ?????????" ! ##??## #???#? | | ????????# ! ##### ##???? | | ????????" /b ## #???# | | ????????" !M ## ?# | | ?????????G ! ## ?? ???? | | ?????????"" / ##?###??#?# | | ??????????? / ##??#?????? | | ??????????? ## #####?#### | | ??????????? ### ### # | | ???????????? ##?# | | ???????????? # # #??## | | ????????????? #### ## ## ###?##### | | ????????????? ##???# ?# ?###??#??#?########## | | ????????????????? ?#??# ??#??##?#?????#??#?#? | | ???????????????????????#???#?#??????#?##????# | | | | | | | | | +----------------------------------------------------+ Best States ------------- Heat Dissipation 54 Energy Generation 16 Energy Capacity 700 Matter Stores 300 Matter Capacity 300 Sight Range 16 Terrain Scan Range 14 Terrain Scan Density 85 Armor Coverage 400 Evasion (%) 55 Item Schematics ----------------- Hvy. Shock Bomb Launcher | -7/Zion | Archive Mak. Shrapnel Gun | -7/Zion | Archive Hvy. Machine Gun | -7/Zion | Archive Lightning Gun | -7/Zion | Archive 0b10 Decoder Chip [Skirmisher] | -7/Zion | Archive Arm. Huge Wheel | -7/Zion | Archive Thermic Laser | -7/Zion | Archive Dynamic Insulation System | -7/Zion | Archive Thermal Shield | -7/Zion | Archive Microactuators | -7/Zion | Archive Arm. Medium Treads | -7/Zion | Archive Nuclear Pulse Thruster | -7/Zion | Archive Mak. Salvage Targeting Computer | -7/Zion | Archive System Restoration Module | -7/Zion | Archive Phase Cannon | -7/Zion | Archive Robot Schematics ------------------ S-27 Virus | -7/Zion | Archive Y-45 Defender | -7/Zion | Archive R-06 Scavenger | -7/Zion | Archive Fabricated ------------ Nothing Alien Tech Used ----------------- None Achievements -------------- Are We The Baddies? Signs Are For Wimps Challenges ------------ None Game ------ Seed SegregatorFireProcessor Manual? 0 Play Time 00:56:41 Cumulative 49.8 hours Start 2022.05.15 @ 20:20:19 End 2022.05.15 @ 21:48:18 Sessions 1 Manual Loads 0 Difficulty Rogue Special Mode None Game No. 35 Rogue 16 Adventurer 16 Explorer 3 Win Type - Total 2 Types 2/0/0/0/0/0/0/0/0 Lore% 33 Gallery% 40 Achievement% 32 Wizard Run 0 Options --------- ASCII 0 Keyboard 1 Movement Numpad Keybinds 0 Fullscreen 1 Font 18/TerminusBold Map View 76x50 Tactical HUD 1 Map Filters NONE Filters NONE Steam X RUN: ff83931d-0fe3-4aad-a177-9c7db2919b3f